{"text_format":"1","workbook":"xlsx","n_sheets":9,"sheets":["Návod","Titulní strana","Vyjádření školitele","Kreditová část","Hodnotici body","Tvůrčí aktivity","Grantové aktivity","Pedagogické aktivity","List1"],"not_rendered":{"charts":0,"images":0,"macros":1,"external_links":0,"defined_names":0,"comments":5,"pivot_tables":0},"unopened":[],"bounds":{"document_bytes":16777216,"sheet_cells":100000,"rows_first":2000,"rows_last":500,"rows_between":2000,"halvings":0,"cell_chars":16384,"cell_head_chars":4096},"cells_cut":0,"cells_raw":0,"read":"whole","date_system":"1900"}

{"sheet":"Návod","index":0,"n_rows":5,"n_cols":1,"rows_kept":5,"cut":false,"hidden":false,"merged":[]}
["Vážení kolegové, studenti doktorského studia na FAI."]
["V souladu se Studijním a zkušebním řádem UTB a příslušnými vnitřními předpisy a normami FAI je nutné provést každoroční hodnocení  a kontrolu plnění individuálního studijního plánu studenta doktorského studia na FAI.  \nOd akademického roku 2008/2009 byl pro kvantifikaci tvůrčích, pedagogických a ostatních aktivit studentů doktorského studijního programu (DSP) používán pouze tzv. kreditní systém. Tento kreditní systém byl počínaje akademickým rokem 2017/2018 aktualizován a systém hodnocení aktivit doktoranda upraven. Hodnocení aktivity doktoranda je posuzováno nově jednak podle počtu získaných kreditů (dle kreditního systému) a jednak podle počtu získaných hodnotících bodů za dílčí aktivity.  Nový systém hodnocení se striktně dotýká studentů, kteří nastoupili ke studiu v ak. roce 2017/18 a později.\n\nHodnocení dílčích aktivit studenta (počet získaných hodnotících bodů) je využíváno jako pomocného kriteria při kontrole plnění individuálního studijního plánu a také pro výpočet výše stipendia v prezenční formě studia (popřípadě žádosti o zvýšení stipendia).\nNásledující tabulky jsou tedy povinni vyplnit všichni studenti doktorského studia na FAI. Studenti, kteří nastoupili ke studiu dříve než v akademickém roce 2017/2018, nemusí vyplňovat vědecko-odbornou část kreditového systému. Počet hodnotících bodů v minulých letech odpovídá počtu kreditů získaných v předešlých letech.\n\nTato tabulka byla kompletně inovována a modifikována v souladu se změnou systému hodnocení doktorandů. Z tohoto důvodu se i přes několikastupňovou kontrolu může objevit nějaká chyba.  Pokud najdete nějakou chybu nebo nesrovnalost, mailujte prosím na mou adresu chramcov@utb.cz. Budu se snažit co nejdříve sjednat nápravu. \n"]
["Pokyny pro odevzdání:\n1) Řádné hodnocení doktoranda za daný akademický rok\n     Vyplněné tabulky vytiskněte (pokud máte některé strany nulové (prázdné), tak tyto listy nemusíte)\n     Nechejte podepsat příslušnými odpovědnými osobami.\n     Podepsané materiály vložte do závěsné složky.\n     Vložte všechny publikační výstupy do systému OBD (včetně odkazu a plného znění), následně vytiskněte seznam výstupů za daný akademický rok. \n     Vše odevzdejte do stanoveného termínu na Oddělení tvůrčích činností\n     Excelovskou tabulku zašlete také elektronicky na chramcov@utb.cz a vyslouzilova@utb.cz se Subjektem mailu (Předmětem) \"Hodnocení doktoranda - Příjmení - forma studia\".\n \n2) Žádost o navýšení stipendia \n     Vyplňte pouze tabulky se splněnými dílčími aktivitami.\n     Přiložte žádost o navýšení stipendia\n     Odevzdejte na OTČ paní Veronice Vysloužilové."]
["Zde jsou některé rady, jak tabulku vyplňovat, popř. co dokladovat."]
["1)  V celé tabulce se vyplňují jen žlutá pole nebo výběrové seznamy. Ostatní jsou předepsaná nebo se dopočítávají či vyplňují sama.\n2)  U některých buněk jsou červené rožky, což znamená, že když nad buňku najedete myší, objeví se Vám nápověda (nejčastěji se vzorem, jak vyplnit).\n3)  Na listu \"Kreditová část\" vyplňte VŠECHNY zkoušky absolvované (popřípadě naplánované dle individuálního studijního plánu) v průběhu Vašeho studia. Ty, které jste absolvovali v průběhu hodnoceného ak. roku, označte \"fajkou\", aby se Vám za ně započítaly kredity. Totéž proveďte pro splněné vědecko-odborné aktivity\n4)  Vyplňte Stanovisko doktoranda. List se stanoviskem školitele nevyplňujete, pouze vytisknete.  Stanovisko školitele připíše Váš školitel ve chvíli, kdy mu celou tabulku donesete na podpis. Stanovisko oborové rady DSP a školicího pracoviště doplňuje předseda OR DSP respektive pan děkan po zasedání OR DSP.\n5)  List \"Hodnotící body\" nevyplňujete, je jen sumarizační.\n6)  U publikačních aktivit (časopisy, knihy, konference) citujte své dílo, dle vzoru nebo dle citační normy. Uvádějte mentální podíl popřípadě kreditovou sazbu dle nápovědy v buňce! Každou publikaci je třeba vložit do systémnu OBD (včetně plného textu a odkazu).\n7)  Tvůrčí aktivitu typu \"Patent\" popř. \"Aplikovaný výsledek\" krátce popište. Konečná výše hodnocení za aktivitu \"Aplikovaný výsledek\" bude stanovena na základě posouzení proděkana pro tvůrčí činnosti a doktorského studia.\n8)  Pokud vykazujete účast na grantu, jehož jste nebyli hlavním řešitelem, necháte si hlavního řešitele podepsat do řádku vedle Vámi zadaných údajů o grantu.\n9)  U pedagogické aktivity typu \"Návrh experimentu, exp. pracoviště nebo lab. pracoviště\" nechte podepsat garanta předmětu, popř. ředitele ústavu.\n10)  Pokud jste zajišťovali výuku, necháte si potvrdit, že odpovídá počet hodin tajemníka ústavu, pro který jste výuku realizovali.\n11)  Nenechte se zmást špatnými součty u počtu odučených hodin.  Započítává se Vám maximálně 10 kreditů za rok.\n12)  Na listu \"Tvůrčí aktivity\" lze v případě potřeby přidat řádky v jednotlivých kategoriích. Pro přidání řádku použijte kombinace kláves \"CTRL + a\". Pro správnou funkci této kombinace je třeba abyste se nacházeli (byla aktivní buňka) v posledním řádku kategorie, kam chcete řádek přidat.\n"]

{"sheet":"Titulní strana","index":1,"n_rows":38,"n_cols":8,"rows_kept":38,"cut":false,"hidden":false,"merged":[[22,0,22,4],[24,0,24,4],[26,0,26,4],[28,0,28,4],[30,0,30,4],[11,0,11,7],[20,0,20,7],[13,0,13,5],[15,0,15,5],[17,0,17,5],[0,0,0,7],[1,0,1,7],[8,6,8,7],[9,6,9,7],[5,0,5,1],[8,2,8,4],[9,2,9,4],[8,0,8,1],[6,6,6,7],[7,6,7,7],[2,0,2,7],[3,0,3,7],[6,2,7,5],[6,0,7,1],[5,2,5,7],[37,0,37,1],[36,4,36,7],[35,0,35,7],[37,4,37,7],[33,4,33,7],[36,0,36,1]]}
["Hodnocení studenta doktorského studia"]
["na Fakultě aplikované informatiky UTB ve Zlíně"]
["po ukončení akademického roku"]
["2024/2025"]
[]
["Jméno a příjmení:"]
["Téma disertační práce:",null,null,null,null,null,"Změna tématu:"]
[null,null,null,null,null,null,1]
["Školitel:",null,null,null,null,"Forma studia: ",2]
["Konzultant:",null,null,null,null,"Ukončený ročník: ",2]
[]
["Kreditová část hodnocení"]
[null,null,null,null,null,null,{"$f":"CONCATENATE(\"Ak. rok \",A4)","v":"Ak. rok 2024/2025"},"Celé \nstudium"]
["Celkový počet kreditů za studijní část doktorského studia",null,null,null,null,null,{"$f":"'Kreditová část'!H25","v":0},{"$f":"'Kreditová část'!I25","v":0}]
[]
["Celkový počet kreditů za aktivity vědecko - odborné části doktorského studia",null,null,null,null,null,{"$f":"'Kreditová část'!H41","v":20},{"$f":"'Kreditová část'!I41","v":20}]
[]
["Celkový počet kreditů ",null,null,null,null,null,{"$f":"G14+G16","v":20},{"$f":"H14+H16","v":20}]
[]
[]
["Hodnocení dílčích aktivit doktoranda"]
[null,null,null,null,null,"Předešlé \nroky studia",{"$f":"CONCATENATE(\"Ak. rok \",A4)","v":"Ak. rok 2024/2025"},"Celé \nstudium"]
["Počet hodnotících bodů za Studijní aktivity (zkoušky)",null,null,null,null,{"$f":"H23-G23","v":0},{"$f":"G14","v":0},{"$f":"H14","v":0}]
[]
[{"$f":"\"Počet hodnotících bodů za \"&'Hodnotici body'!A6","v":"Počet hodnotících bodů za Tvůrčí aktivity"},null,null,null,null,0,{"$f":"'Hodnotici body'!H21","v":0},{"$f":"F25+G25","v":0}]
[]
[{"$f":"\"Počet hodnotících bodů za \"&'Hodnotici body'!A23","v":"Počet hodnotících bodů za Grantové aktivity"},null,null,null,null,0,{"$f":"'Hodnotici body'!H32","v":0},{"$f":"F27+G27","v":0}]
[]
[{"$f":"\"Počet hodnotících bodů za \"&'Hodnotici body'!A34","v":"Počet hodnotících bodů za Pedagogické a mobilitní aktivity"},null,null,null,null,0,{"$f":"'Hodnotici body'!H42","v":0},{"$f":"F29+G29","v":0}]
[]
["Celkový počet získaných hodnotících bodů",null,null,null,null,{"$f":"SUM(F23:F29)","v":0},{"$f":"SUM(G23:G29)","v":0},{"$f":"SUM(H23:H29)","v":0}]
[]
[]
[]
["Stanovisko doktoranda k průběhu studia:"]
["stanovisko doktoranda:"]
["……………………………..",null,null,null,"………………………………………."]
["datum",null,null,null,{"$f":"C6","v":0}]

{"sheet":"Vyjádření školitele","index":2,"n_rows":33,"n_cols":7,"rows_kept":33,"cut":false,"hidden":false,"merged":[[20,0,20,1],[20,4,20,7],[15,4,15,7],[23,0,23,7],[24,0,24,1],[24,4,24,7],[18,0,18,7],[19,0,19,1],[19,4,19,7],[32,4,32,7],[26,4,26,7],[25,0,25,1],[25,4,25,7],[29,0,29,7],[30,0,30,1],[30,4,30,7],[31,0,31,1],[31,4,31,7],[6,0,7,1],[8,0,8,1],[8,2,8,4],[8,6,8,7],[14,0,14,1],[14,4,14,7],[6,2,7,7],[12,0,12,7],[13,0,13,1],[13,4,13,7],[9,2,9,4],[9,6,9,7],[0,0,0,7],[1,0,1,7],[2,0,2,7],[3,0,3,7],[5,0,5,1],[5,2,5,7]]}
[{"$f":"'Titulní strana'!A1:H1","v":"Hodnocení studenta doktorského studia"}]
[{"$f":"'Titulní strana'!A2:H2","v":"na Fakultě aplikované informatiky UTB ve Zlíně"}]
[{"$f":"'Titulní strana'!A3:H3","v":"po ukončení akademického roku"}]
[{"$f":"'Titulní strana'!A4:H4","v":"2024/2025"}]
[]
["Jméno a příjmení:",null,{"$f":"'Titulní strana'!C6:H6","v":0}]
["Téma disertační práce:",null,{"$f":"'Titulní strana'!C7:F8","v":0}]
[]
["Školitel:",null,{"$f":"'Titulní strana'!C9:E9","v":0},null,null,"Forma studia: ",1]
["Konzultant:",null,{"$f":"'Titulní strana'!C10:E10","v":0},null,null,"Ukončený ročník: ",2]
[]
["Stanovisko školitele:"]
[]
["……………………………..",null,null,null,"………………………………………."]
["datum",null,null,null,{"$f":"C9","v":0}]
[null,null,null,null,"školitel"]
[]
["Vyjádření studenta ke stanovisku školitele:"]
[]
["……………………………..",null,null,null,"………………………………………."]
["datum",null,null,null,{"$f":"C6","v":0}]
[]
["Vyjádření Oborové rady DSP:"]
[]
["……………………………..",null,null,null,"………………………………………."]
["datum",null,null,null,"prof. Ing. Roman Prokop, CSc.\nPředseda OR DSP"]
[null,null,null,null,"předseda OR DSP"]
[]
["Stanovisko vedoucího školicího pracoviště:"]
[]
["……………………………..",null,null,null,"………………………………………."]
["datum",null,null,null,"doc. Ing. Jiří Vojtěšek, Ph.D."]
[null,null,null,null,"děkan FAI"]

{"sheet":"Kreditová část","index":3,"n_rows":41,"n_cols":9,"rows_kept":41,"cut":false,"hidden":false,"merged":[[36,0,36,4],[37,0,37,1],[37,2,37,8],[27,0,28,4],[29,0,29,4],[30,0,30,4],[31,0,31,4],[33,0,33,4],[34,0,34,4],[27,5,28,5],[27,6,28,6],[27,7,27,8],[35,0,35,4],[32,0,32,4],[14,0,14,3],[5,2,6,8],[5,0,6,1],[20,0,20,3],[1,0,1,8],[17,0,17,3],[18,0,18,3],[19,0,19,3],[4,0,4,1],[4,2,4,8],[8,2,8,4],[8,6,8,8],[13,0,13,3],[0,0,0,8],[10,0,10,8],[26,0,26,8],[2,0,2,8],[21,2,21,8],[7,0,7,1],[7,2,7,4],[7,6,7,8],[21,0,21,1],[11,7,11,8],[11,0,12,3],[11,4,12,4],[11,5,12,5],[11,6,12,6],[15,0,15,3],[16,0,16,3]]}
["KREDITOVÁ ČÁST"]
["Celkový přehled kreditů po ukončení akademického roku"]
[{"$f":"'Titulní strana'!A4:H4","v":"2024/2025"}]
[]
["Jméno a příjmení:",null,{"$f":"'Titulní strana'!C6:H6","v":0}]
["Téma disertační práce:",null,{"$f":"'Titulní strana'!C7","v":0}]
[]
["Školitel:",null,{"$f":"'Titulní strana'!C9:E9","v":0},null,null,"Forma studia: ",1]
["Konzultant:",null,{"$f":"'Titulní strana'!C10:E10","v":0},null,null,"Ukončený ročník: ",4]
[]
["Studijní část - zkoušky"]
["Zkoušky",null,null,null,"Plánovaný termín","Skutečný datum vykonání","Započítat letos","Získané kredity"]
[null,null,null,null,null,null,null,"letos","celkem"]
[" Matematika",null,null,null,null,null,false,{"$f":"G14*10","v":0},{"$f":"IF(ISBLANK(F14),H14,10)","v":0}]
[" Angličtina",null,null,null,null,null,false,{"$f":"G15*10","v":0},{"$f":"IF(ISBLANK(F15),H15,10)","v":0}]
[null,null,null,null,null,null,false,0,0]
[null,null,null,null,null,null,false,0,0]
[null,null,null,null,null,null,false,0,0]
[null,null,null,null,null,null,false,0,0]
[" Další zkouška (Předmět oboru)",null,null,null,null,null,false,0,0]
[" Státní doktorská zkouška",null,null,null,null,null,false,{"$f":"G21*30","v":0},{"$f":"IF(ISBLANK(F21),H21,30)","v":0}]
["Název práce ke SDZ:"]
[]
[null,null,null,null,null,null,null,{"$f":"CONCATENATE(\"Ak. rok \",A3)","v":"Ak. rok 2024/2025"},"Celé studium"]
["Celkový počet kreditů za studijní část doktorského studia",null,null,null,null,null,null,{"$f":"SUM(H14:H21)","v":0},{"$f":"SUM(I14:I21)","v":0}]
[]
["Vědecko - odborná část"]
["Název aktivity",null,null,null,null,"Datum uznání aktivity","Započítat letos","Získané kredity"]
[null,null,null,null,null,null,null,"letos","celkem"]
[" P-Jrec (Recenzované časopisy, odborné knihy)",null,null,null,null,null,false,{"$f":"G30*10","v":0},{"$f":"IF(ISBLANK(F30),H30,10)","v":0}]
[" P-Konf (Konference evidované v databázích WoS, SCOPUS) ",null,null,null,null,null,false,0,0]
[" P-Ost (Ostatní publikační a tvůrčí činnost)",null,null,null,null,null,true,10,10]
[" Rešerše (Zpracování současného stavu poznání v tématu disertační práce)",null,null,null,null,null,true,{"$f":"G33*10","v":10},{"$f":"IF(ISBLANK(F33),H33,10)","v":10}]
[" G-Akt (Grantové činnosti a doplňková činnost FAI)",null,null,null,null,null,false,0,0]
[" MOBILITA (Mobilitní a mezinárodní aktivita)",null,null,null,null,null,false,0,0]
[" PEDAGOGIKA (Odborně pedagogická činnost)",null,null,null,null,null,false,0,0]
[" Obhajoba disertační práce",null,null,null,null,null,false,{"$f":"G37*30","v":0},{"$f":"IF(ISBLANK(F37),H37,30)","v":0}]
["Název disertační práce:"]
[]
[null,null,null,null,null,null,null,{"$f":"CONCATENATE(\"Ak. rok \",A3)","v":"Ak. rok 2024/2025"},"Celé studium"]
["Celkový počet kreditů za aktivity vědecko - odborné části doktorského studia",null,null,null,null,null,null,{"$f":"SUM(H30:H37)","v":20},{"$f":"SUM(I30:I37)","v":20}]

{"sheet":"Hodnotici body","index":4,"n_rows":45,"n_cols":8,"rows_kept":45,"cut":false,"hidden":false,"merged":[[44,0,44,6],[41,0,41,6],[40,0,40,5],[30,0,30,5],[32,0,32,5],[31,0,31,6],[34,0,34,5],[36,0,36,5],[37,0,37,5],[39,0,39,5],[0,0,0,7],[38,0,38,5],[22,0,22,7],[33,0,33,7],[20,0,20,6],[3,0,3,1],[3,2,3,7],[5,0,5,5],[6,1,6,5],[7,1,7,5],[16,1,16,5],[17,1,17,5],[26,0,26,5],[28,0,28,5],[11,1,11,5],[12,1,12,5],[21,0,21,5],[23,0,23,5],[24,0,24,5],[35,0,35,5],[25,0,25,5],[27,0,27,5],[29,0,29,5],[18,1,18,5],[19,1,19,5],[15,1,15,5],[8,1,8,5],[9,1,9,5],[10,1,10,5],[13,1,13,5],[14,1,14,5]]}
[{"$f":"\"Hodnocení dílčích aktivit doktoranda za akademický rok \"&'Titulní strana'!A4:H4","v":"Hodnocení dílčích aktivit doktoranda za akademický rok 2024/2025"}]
[]
[]
["Jméno a příjmení:",null,{"$f":"'Titulní strana'!C6:H6","v":0}]
[]
["Tvůrčí aktivity",null,null,null,null,null,"Sazba","Počet získaných hodnotících bodů"]
["Jimp","Články v impaktovaných časopisech evidovaných v databázi Web of Science (WoS)",null,null,null,null,"D1-160, Q1-120, Q2-80, Q3-40, Q4-30",{"$f":"'Tvůrčí aktivity'!H8","v":0}]
["Jsc","Články v recenzovaných časopisech indexovaných v databázi SCOPUS ",null,null,null,null,"D1-120, Q1-90, Q2-60, Q3-30, Q4-20",{"$f":"'Tvůrčí aktivity'!H13","v":0}]
["B1","Odborná kniha (kapitola v knize) – světový jazyk",null,null,null,null,"15/AA",{"$f":"'Tvůrčí aktivity'!H18","v":0}]
["B2","Odborná kniha (kapitola v knize) – ostatní jazyky",null,null,null,null,"8/AA",{"$f":"'Tvůrčí aktivity'!H23","v":0}]
["D","Články ve sborníku konference evidované v databázi Web of Science nebo SCOPUS",null,null,null,null,10,{"$f":"'Tvůrčí aktivity'!H28","v":0}]
["P1","\"Evropský\" patent  (EPO), patent USA (USPTO) nebo patent Japonska realizovaný v návaznosti na téma disertační práce",null,null,null,null,200,{"$f":"'Tvůrčí aktivity'!H33","v":0}]
["P2","Český nebo národní patent, který je využíván na základě platné licenční smlouvy a realizovaný v návaznosti na téma disertační práce",null,null,null,null,100,{"$f":"'Tvůrčí aktivity'!H38","v":0}]
["P3","Ostatní patenty (například nevyužívané na základě licenční smlouvy)",null,null,null,null,25,{"$f":"'Tvůrčí aktivity'!H43","v":0}]
["Aplikované výsledky","Poloprovoz, ověřená technologie, prototyp, funkční vzorek, software, užitný vzor, průmyslový vzor, certifikovaná metodika",null,null,null,null,"2 - 30",{"$f":"'Tvůrčí aktivity'!H48","v":0}]
["Jneimp1","Články v recenzovaných časopisech uvedených v seznamu českých recenzovaných periodik ",null,null,null,null,{"$f":"IF('Titulní strana'!G10=1,8,IF('Titulní strana'!G10=2,5,2))","v":5},{"$f":"'Tvůrčí aktivity'!H53","v":0}]
["Jneimp2","Články ve vědeckých nebo odborných časopisech neindexovaných v databázi SCOPUS – světový jazyk",null,null,null,null,{"$f":"IF('Titulní strana'!G10=1,8,IF('Titulní strana'!G10=2,5,2))","v":5},{"$f":"'Tvůrčí aktivity'!H58","v":0}]
["Jneimp3","Články ve vědeckých nebo odborných časopisech neindexovaných v databázi SCOPUS – ostatní jazyky",null,null,null,null,{"$f":"IF('Titulní strana'!G10=1,3,IF('Titulní strana'!G10=2,2,0))","v":2},{"$f":"'Tvůrčí aktivity'!H63","v":0}]
["Dnehodn1","Články ve sborníku mezinárodní konference neevidované v databázi WoS nebo SCOPUS – světový jazyk",null,null,null,null,{"$f":"IF('Titulní strana'!G10=1,5,IF('Titulní strana'!G10=2,3,IF('Titulní strana'!G10=3,2,0)))","v":3},{"$f":"'Tvůrčí aktivity'!H68","v":0}]
["Dnehodn2","Články ve sborníku ostatních konferencí - ostatní jazyky",null,null,null,null,{"$f":"IF('Titulní strana'!G10=1,2,IF('Titulní strana'!G10=2,2,0))","v":2},{"$f":"'Tvůrčí aktivity'!H73","v":0}]
["Tvůrčí aktivity - Celkem",null,null,null,null,null,null,{"$f":"SUM(H7:H20)","v":0}]
[]
["Grantové aktivity"]
["Řešitel nebo spoluřešitel interního (fakultního) grantu (IGA) s obhájenou závěrečnou zprávou ",null,null,null,null,null,"(-5) - 10",{"$f":"'Grantové aktivity'!H6","v":0}]
["Odpovědný řešitel mezinárodního projektu",null,null,null,null,null,40,{"$f":"'Grantové aktivity'!H11","v":0}]
["Aktivní účast na řešení (spoluřešitel) mezinárodního projektu",null,null,null,null,null,"5 - 20",{"$f":"'Grantové aktivity'!H16","v":0}]
["Odpovědný řešitel grantu GAČR, TAČR, resortního projektu (MPO, MO, MZE, MŠMT atd.)",null,null,null,null,null,30,{"$f":"'Grantové aktivity'!H21","v":0}]
["Aktivní účast na řešení (spoluřešitel) projektu GAČR, TAČR nebo resortního projektu",null,null,null,null,null,"5 - 15",{"$f":"'Grantové aktivity'!H27","v":0}]
["Odpovědný řešitel rozvojového projektu UTB",null,null,null,null,null,5,{"$f":"'Grantové aktivity'!H32","v":0}]
["Aktivní účast na řešení (spoluřešitel) rozvojového projektu UTB",null,null,null,null,null,3,{"$f":"'Grantové aktivity'!H37","v":0}]
["Podíl na řešení doplňkové činnosti v návaznosti na téma disertační práce s využitím poznatků oboru disertační práce",null,null,null,null,null,"5 - 15",{"$f":"'Grantové aktivity'!H42","v":0}]
["Grantové aktivity - Celkem",null,null,null,null,null,null,{"$f":"SUM(H24:H31)","v":0}]
[]
["Pedagogické a mobilitní aktivity"]
["Mobilita – studijní pobyt na zahraniční univerzitě v oboru v délce minimálně 28 dnů",null,null,null,null,null,"10/měsíc",{"$f":"'Pedagogické aktivity'!G8","v":0}]
["Mobilita – studijní pobyt na zahraniční univerzitě v oboru v délce kratší než 28 dnů",null,null,null,null,null,"1/týden",{"$f":"'Pedagogické aktivity'!G13","v":0}]
["Návrh experimentu, experimentálního pracoviště, laboratorního pracoviště.",null,null,null,null,null,5,{"$f":"'Pedagogické aktivity'!G20","v":0}]
["Učební pomůcka (výukové materiály, skripta, výukové programy, laboratorní úloha)",null,null,null,null,null,"2 - 5",{"$f":"'Pedagogické aktivity'!G25","v":0}]
["Zajištění výuky školicím pracovištěm v oboru disertační práce, max 10 hodnotících bodů v akademickém roce.",null,null,null,null,null,"1 bod za 1 hod týdně a semestr\n2 body za 1 hod týdně a semestr (výuka v angl. jazyce)",{"$f":"'Pedagogické aktivity'!G47","v":0}]
["Odevzdání disertační práce v českém (slovenském) jazyce",null,null,null,null,null,30,{"$f":"'Pedagogické aktivity'!G51","v":0}]
["Odevzdání disertační práce v anglickém jazyce",null,null,null,null,null,50,{"$f":"'Pedagogické aktivity'!G55","v":0}]
["Pedagogické a mobilitní aktivity - Celkem",null,null,null,null,null,null,{"$f":"SUM(H35:H41)","v":0}]
[]
[]
["Celkový počet získaných hodnotících bodů",null,null,null,null,null,null,{"$f":"H21+H32+H42","v":0}]

{"sheet":"Tvůrčí aktivity","index":5,"n_rows":75,"n_cols":8,"rows_kept":75,"cut":false,"hidden":false,"merged":[[67,0,67,4],[69,1,69,5],[17,0,17,4],[19,1,19,4],[74,0,74,6],[47,0,47,4],[59,1,59,5],[60,0,60,5],[49,1,49,5],[65,0,65,5],[66,0,66,5],[61,0,61,5],[57,0,57,4],[64,1,64,5],[62,0,62,4],[71,0,71,5],[72,0,72,4],[70,0,70,5],[36,0,36,5],[37,0,37,4],[40,0,40,5],[39,1,39,5],[56,0,56,5],[41,0,41,5],[45,0,45,4],[46,0,46,4],[50,0,50,5],[51,0,51,5],[54,1,54,5],[55,0,55,5],[52,0,52,4],[44,1,44,4],[9,1,9,4],[12,0,12,4],[3,0,3,7],[10,0,10,4],[16,0,16,4],[11,0,11,4],[14,1,14,4],[15,0,15,4],[0,0,0,1],[0,2,0,7],[5,0,5,4],[6,0,6,4],[7,0,7,4],[4,1,4,4],[20,0,20,4],[21,0,21,4],[27,0,27,4],[30,0,30,5],[31,0,31,5],[24,1,24,5],[25,0,25,5],[26,0,26,5],[22,0,22,4],[42,0,42,4],[32,0,32,4],[34,1,34,5],[29,1,29,5],[35,0,35,5]]}
["Jméno a příjmení:",null,{"$f":"'Titulní strana'!C6:H6","v":0}]
[]
[]
[{"$f":"'Hodnotici body'!A6","v":"Tvůrčí aktivity"}]
[{"$f":"'Hodnotici body'!A7","v":"Jimp"},{"$f":"'Hodnotici body'!B7&\" (počet HB: \"&'Hodnotici body'!G7&\")\"","v":"Články v impaktovaných časopisech evidovaných v databázi Web of Science (WoS) (počet HB: D1-160, Q1-120, Q2-80, Q3-40, Q4-30)"},null,null,null,"Umístění časopisu (D1, Q1, Q2, Q3, Q4)","Mentální podíl\n( 0 - 1 )","Počet získaných hodnotících bodů"]
["Citace",null,null,null,null,null,null,{"$f":"IF(F6=\"D1\",160*G6,IF(F6=\"Q1\",120*G6,IF(F6=\"Q2\",80*G6,IF(F6=\"Q3\",40*G6,30*G6))))","v":0}]
[null,null,null,null,null,null,null,{"$f":"IF(F7=\"D1\",160*G7,IF(F7=\"Q1\",120*G7,IF(F7=\"Q2\",80*G7,IF(F7=\"Q3\",40*G7,30*G7))))","v":0}]
["Celkem",null,null,null,null,null,null,{"$f":"CEILING(SUM(H6:H7),1)","v":0}]
[]
[{"$f":"'Hodnotici body'!A8","v":"Jsc"},{"$f":"'Hodnotici body'!B8&\" (počet HB: \"&'Hodnotici body'!G8&\")\"","v":"Články v recenzovaných časopisech indexovaných v databázi SCOPUS  (počet HB: D1-120, Q1-90, Q2-60, Q3-30, Q4-20)"},null,null,null,"Umístění časopisu (D1, Q1, Q2, Q3, Q4)","Mentální podíl\n( 0 - 1 )","Počet získaných hodnotících bodů"]
["Citace",null,null,null,null,null,null,{"$f":"IF(F11=\"D1\",120*G11,IF(F11=\"Q1\",90*G11,IF(F11=\"Q2\",60*G11,IF(F11=\"Q3\",30*G11,20*G11))))","v":0}]
[null,null,null,null,null,null,null,{"$f":"IF(F12=\"D1\",120*G12,IF(F12=\"Q1\",90*G12,IF(F12=\"Q2\",60*G12,IF(F12=\"Q3\",30*G12,20*G12))))","v":0}]
["Celkem",null,null,null,null,null,null,{"$f":"CEILING(SUM(H11:H12),1)","v":0}]
[]
[{"$f":"'Hodnotici body'!A9","v":"B1"},{"$f":"'Hodnotici body'!B9&\" (počet HB: \"&'Hodnotici body'!G9&\")\"","v":"Odborná kniha (kapitola v knize) – světový jazyk (počet HB: 15/AA)"},null,null,null,"Počet AA","Mentální podíl\n( 0 - 1 )","Počet získaných hodnotících bodů"]
["Citace",null,null,null,null,null,null,{"$f":"15*F16*G16","v":0}]
[null,null,null,null,null,null,null,{"$f":"15*F17*G17","v":0}]
["Celkem",null,null,null,null,null,null,{"$f":"CEILING(SUM(H16:H17),1)","v":0}]
[]
[{"$f":"'Hodnotici body'!A10","v":"B2"},{"$f":"'Hodnotici body'!B10&\" (počet HB: \"&'Hodnotici body'!G10&\")\"","v":"Odborná kniha (kapitola v knize) – ostatní jazyky (počet HB: 8/AA)"},null,null,null,"Počet AA","Mentální podíl\n( 0 - 1 )","Počet získaných hodnotících bodů"]
["Citace",null,null,null,null,null,null,{"$f":"8*F21*G21","v":0}]
[null,null,null,null,null,null,null,{"$f":"8*F22*G22","v":0}]
["Celkem",null,null,null,null,null,null,{"$f":"CEILING(SUM(H21:H22),1)","v":0}]
[]
[{"$f":"'Hodnotici body'!A11","v":"D"},{"$f":"'Hodnotici body'!B11&\" (počet HB: \"&'Hodnotici body'!G11&\")\"","v":"Články ve sborníku konference evidované v databázi Web of Science nebo SCOPUS (počet HB: 10)"},null,null,null,null,"Mentální podíl\n( 0 - 1 )","Počet získaných hodnotících bodů"]
["Citace",null,null,null,null,null,null,{"$f":"G26*'Hodnotici body'!$G$11","v":0}]
[null,null,null,null,null,null,null,{"$f":"G27*'Hodnotici body'!$G$11","v":0}]
["Celkem",null,null,null,null,null,null,{"$f":"CEILING(SUM(H26:H27),1)","v":0}]
[]
[{"$f":"'Hodnotici body'!A12","v":"P1"},{"$f":"'Hodnotici body'!B12&\" (počet HB: \"&'Hodnotici body'!G12&\")\"","v":"\"Evropský\" patent  (EPO), patent USA (USPTO) nebo patent Japonska realizovaný v návaznosti na téma disertační práce (počet HB: 200)"},null,null,null,null,"Mentální podíl\n( 0 - 1 )","Počet získaných hodnotících bodů"]
["Název a popis patentu",null,null,null,null,null,null,{"$f":"G31*'Hodnotici body'!$G$12","v":0}]
[null,null,null,null,null,null,null,{"$f":"G32*'Hodnotici body'!$G$12","v":0}]
["Celkem",null,null,null,null,null,null,{"$f":"CEILING(SUM(H31:H32),1)","v":0}]
[]
[{"$f":"'Hodnotici body'!A13","v":"P2"},{"$f":"'Hodnotici body'!B13&\" (počet HB: \"&'Hodnotici body'!G13&\")\"","v":"Český nebo národní patent, který je využíván na základě platné licenční smlouvy a realizovaný v návaznosti na téma disertační práce (počet HB: 100)"},null,null,null,null,"Mentální podíl\n( 0 - 1 )","Počet získaných hodnotících bodů"]
["Název a popis patentu",null,null,null,null,null,null,{"$f":"G36*'Hodnotici body'!$G$13","v":0}]
[null,null,null,null,null,null,null,{"$f":"G37*'Hodnotici body'!$G$13","v":0}]
["Celkem",null,null,null,null,null,null,{"$f":"CEILING(SUM(H36:H37),1)","v":0}]
[]
[{"$f":"'Hodnotici body'!A14","v":"P3"},{"$f":"'Hodnotici body'!B14&\" (počet HB: \"&'Hodnotici body'!G14&\")\"","v":"Ostatní patenty (například nevyužívané na základě licenční smlouvy) (počet HB: 25)"},null,null,null,null,"Mentální podíl\n( 0 - 1 )","Počet získaných hodnotících bodů"]
["Název a popis patentu",null,null,null,null,null,null,{"$f":"G41*'Hodnotici body'!$G$14","v":0}]
[null,null,null,null,null,null,null,{"$f":"G42*'Hodnotici body'!$G$14","v":0}]
["Celkem",null,null,null,null,null,null,{"$f":"CEILING(SUM(H41:H42),1)","v":0}]
[]
[{"$f":"'Hodnotici body'!A15","v":"Aplikované výsledky"},{"$f":"'Hodnotici body'!B15&\" (počet HB: \"&'Hodnotici body'!G15&\")\"","v":"Poloprovoz, ověřená technologie, prototyp, funkční vzorek, software, užitný vzor, průmyslový vzor, certifikovaná metodika (počet HB: 2 - 30)"},null,null,null,"počet HB","Mentální podíl\n( 0 - 1 )","Počet získaných hodnotících bodů"]
["Popis aplikovaného výsledku",null,null,null,null,null,null,{"$f":"G46*F46","v":0}]
[null,null,null,null,null,null,null,{"$f":"G47*F47","v":0}]
["Celkem",null,null,null,null,null,null,{"$f":"CEILING(SUM(H46:H47),1)","v":0}]
[]
[{"$f":"'Hodnotici body'!A16","v":"Jneimp1"},{"$f":"'Hodnotici body'!B16&\" (počet HB: \"&'Hodnotici body'!G16&\")\"","v":"Články v recenzovaných časopisech uvedených v seznamu českých recenzovaných periodik  (počet HB: 5)"},null,null,null,null,"Mentální podíl\n( 0 - 1 )","Počet získaných hodnotících bodů"]
["Citace",null,null,null,null,null,null,{"$f":"G51*'Hodnotici body'!$G$16","v":0}]
[null,null,null,null,null,null,null,{"$f":"G52*'Hodnotici body'!$G$16","v":0}]
["Celkem",null,null,null,null,null,null,{"$f":"CEILING(SUM(H51:H52),1)","v":0}]
[]
[{"$f":"'Hodnotici body'!A17","v":"Jneimp2"},{"$f":"'Hodnotici body'!B17&\" (počet HB: \"&'Hodnotici body'!G17&\")\"","v":"Články ve vědeckých nebo odborných časopisech neindexovaných v databázi SCOPUS – světový jazyk (počet HB: 5)"},null,null,null,null,"Mentální podíl\n( 0 - 1 )","Počet získaných hodnotících bodů"]
["Citace",null,null,null,null,null,null,{"$f":"G56*'Hodnotici body'!$G$17","v":0}]
[null,null,null,null,null,null,null,{"$f":"G57*'Hodnotici body'!$G$17","v":0}]
["Celkem",null,null,null,null,null,null,{"$f":"CEILING(SUM(H56:H57),1)","v":0}]
[]
[{"$f":"'Hodnotici body'!A18","v":"Jneimp3"},{"$f":"'Hodnotici body'!B18&\" (počet HB: \"&'Hodnotici body'!G18&\")\"","v":"Články ve vědeckých nebo odborných časopisech neindexovaných v databázi SCOPUS – ostatní jazyky (počet HB: 2)"},null,null,null,null,"Mentální podíl\n( 0 - 1 )","Počet získaných hodnotících bodů"]
["Citace",null,null,null,null,null,null,{"$f":"G61*'Hodnotici body'!$G$18","v":0}]
[null,null,null,null,null,null,null,{"$f":"G62*'Hodnotici body'!$G$18","v":0}]
["Celkem",null,null,null,null,null,null,{"$f":"CEILING(SUM(H61:H62),1)","v":0}]
[]
[{"$f":"'Hodnotici body'!A19","v":"Dnehodn1"},{"$f":"'Hodnotici body'!B19&\" (počet HB: \"&'Hodnotici body'!G19&\")\"","v":"Články ve sborníku mezinárodní konference neevidované v databázi WoS nebo SCOPUS – světový jazyk (počet HB: 3)"},null,null,null,null,"Mentální podíl\n( 0 - 1 )","Počet získaných hodnotících bodů"]
["Citace",null,null,null,null,null,null,{"$f":"G66*'Hodnotici body'!$G$19","v":0}]
[null,null,null,null,null,null,null,{"$f":"G67*'Hodnotici body'!$G$19","v":0}]
["Celkem",null,null,null,null,null,null,{"$f":"CEILING(SUM(H66:H67),1)","v":0}]
[]
[{"$f":"'Hodnotici body'!A20","v":"Dnehodn2"},{"$f":"'Hodnotici body'!B20&\" (počet HB: \"&'Hodnotici body'!G20&\")\"","v":"Články ve sborníku ostatních konferencí - ostatní jazyky (počet HB: 2)"},null,null,null,null,"Mentální podíl\n( 0 - 1 )","Počet získaných hodnotících bodů"]
["Citace",null,null,null,null,null,null,{"$f":"G71*'Hodnotici body'!$G$20","v":0}]
[null,null,null,null,null,null,null,{"$f":"G72*'Hodnotici body'!$G$20","v":0}]
["Celkem",null,null,null,null,null,null,{"$f":"CEILING(SUM(H71:H72),1)","v":0}]
[]
["Tvůrčí aktivity - Celkem",null,null,null,null,null,null,{"$f":"H8+H13+H53+H58+H63+H18+H23+H68+H73+H33+H38+H43+H48+H28","v":0}]

{"sheet":"Grantové aktivity","index":6,"n_rows":44,"n_cols":8,"rows_kept":44,"cut":false,"hidden":false,"merged":[[7,0,7,5],[15,0,15,4],[13,0,13,6],[14,0,14,6],[12,0,12,6],[22,0,22,6],[23,0,23,6],[25,0,25,6],[26,0,26,4],[33,0,33,5],[31,0,31,4],[43,0,43,6],[34,0,34,5],[41,0,41,4],[35,0,35,5],[36,0,36,4],[39,0,39,6],[40,0,40,6],[38,0,38,6],[0,0,0,1],[0,2,0,7],[2,0,2,7],[29,0,29,5],[30,0,30,5],[18,0,18,5],[5,0,5,4],[3,0,3,5],[4,0,4,5],[20,0,20,4],[28,0,28,5],[8,0,8,5],[19,0,19,5],[10,0,10,4],[9,0,9,5],[17,0,17,5]]}
["Jméno a příjmení:",null,{"$f":"'Titulní strana'!C6:H6","v":0}]
[]
[{"$f":"'Hodnotici body'!A23","v":"Grantové aktivity"}]
[{"$f":"'Hodnotici body'!A24&\" \n(počet HB: \"&'Hodnotici body'!G24&\")\"","v":"Řešitel nebo spoluřešitel interního (fakultního) grantu (IGA) s obhájenou závěrečnou zprávou  \n(počet HB: (-5) - 10)"},null,null,null,null,null,"Hodnocení projektu","Počet získaných hodnotících bodů"]
["Název projektu, částka, doba řešení",null,null,null,null,null,7,{"$f":"IF(G5<6,12-G5*2,IF(G5=6,-5,0))","v":0}]
["Celkem",null,null,null,null,null,null,{"$f":"SUM(H5:H5)","v":0}]
[]
[{"$f":"'Hodnotici body'!A25&\" (počet HB: \"&'Hodnotici body'!G25&\")\"","v":"Odpovědný řešitel mezinárodního projektu (počet HB: 40)"},null,null,null,null,null,"ANO/Ne","Počet získaných hodnotících bodů"]
["Název projektu, doba řešení, řešitel",null,null,null,null,null,false,{"$f":"G9*'Hodnotici body'!G25","v":0}]
[null,null,null,null,null,null,false,{"$f":"G10*'Hodnotici body'!G25","v":0}]
["Celkem",null,null,null,null,null,null,{"$f":"SUM(H9:H10)","v":0}]
[]
[{"$f":"'Hodnotici body'!A26&\" (počet HB: \"&'Hodnotici body'!G26&\")\"","v":"Aktivní účast na řešení (spoluřešitel) mezinárodního projektu (počet HB: 5 - 20)"},null,null,null,null,null,null,"Počet získaných hodnotících bodů"]
["Název projektu, doba řešení, řešitel"]
[]
["Celkem",null,null,null,null,null,null,{"$f":"SUM(H14:H15)","v":0}]
[]
[{"$f":"'Hodnotici body'!A27&\" \n(počet HB: \"&'Hodnotici body'!G27&\")\"","v":"Odpovědný řešitel grantu GAČR, TAČR, resortního projektu (MPO, MO, MZE, MŠMT atd.) \n(počet HB: 30)"},null,null,null,null,null,"ANO/Ne","Počet získaných hodnotících bodů"]
["Název projektu, doba řešení, řešitel",null,null,null,null,null,false,{"$f":"G19*'Hodnotici body'!G27","v":0}]
[null,null,null,null,null,null,false,{"$f":"G20*'Hodnotici body'!G27","v":0}]
["Celkem",null,null,null,null,null,null,{"$f":"SUM(H19:H20)","v":0}]
[]
[{"$f":"'Hodnotici body'!A28&\" (počet HB: \"&'Hodnotici body'!G28&\")\"","v":"Aktivní účast na řešení (spoluřešitel) projektu GAČR, TAČR nebo resortního projektu (počet HB: 5 - 15)"},null,null,null,null,null,null,"Počet získaných hodnotících bodů"]
["Název projektu, doba řešení, řešitel"]
[]
[]
["Celkem",null,null,null,null,null,null,{"$f":"SUM(H24:H26)","v":0}]
[]
[{"$f":"'Hodnotici body'!A29&\" (počet HB: \"&'Hodnotici body'!G29&\")\"","v":"Odpovědný řešitel rozvojového projektu UTB (počet HB: 5)"},null,null,null,null,null,"ANO/Ne","Počet získaných hodnotících bodů"]
["Název projektu, doba řešení, řešitel",null,null,null,null,null,false,{"$f":"G30*'Hodnotici body'!G29","v":0}]
[null,null,null,null,null,null,false,{"$f":"G31*'Hodnotici body'!G29","v":0}]
["Celkem",null,null,null,null,null,null,{"$f":"SUM(H30:H31)","v":0}]
[]
[{"$f":"'Hodnotici body'!A30&\" (počet HB: \"&'Hodnotici body'!G30&\")\"","v":"Aktivní účast na řešení (spoluřešitel) rozvojového projektu UTB (počet HB: 3)"},null,null,null,null,null,"ANO/Ne","Počet získaných hodnotících bodů"]
["Název projektu, doba řešení, řešitel",null,null,null,null,null,false,{"$f":"G35*'Hodnotici body'!G30","v":0}]
[null,null,null,null,null,null,false,{"$f":"G36*'Hodnotici body'!G30","v":0}]
["Celkem",null,null,null,null,null,null,{"$f":"SUM(H35:H36)","v":0}]
[]
[{"$f":"'Hodnotici body'!A31&\"  (počet HB: \"&'Hodnotici body'!G31&\")\"","v":"Podíl na řešení doplňkové činnosti v návaznosti na téma disertační práce s využitím poznatků oboru disertační práce  (počet HB: 5 - 15)"},null,null,null,null,null,null,"Počet získaných hodnotících bodů"]
["Název projektu, doba řešení, řešitel",null,null,null,null,null,false]
[]
["Celkem",null,null,null,null,null,null,{"$f":"SUM(H40:H41)","v":0}]
[]
["Grantové aktivity - Celkem",null,null,null,null,null,null,{"$f":"H6+H11+H21+H32+H42+H37+H27+H16","v":0}]

{"sheet":"Pedagogické aktivity","index":7,"n_rows":58,"n_cols":7,"rows_kept":58,"cut":false,"hidden":false,"merged":[[57,0,57,5],[40,0,40,1],[41,0,41,1],[42,0,42,1],[54,0,54,4],[53,0,53,4],[36,0,36,5],[45,0,45,5],[46,0,46,5],[52,0,52,4],[48,0,48,4],[39,0,39,1],[49,0,49,4],[50,0,50,4],[9,0,9,4],[33,0,33,1],[38,0,38,6],[44,0,44,5],[43,0,43,1],[35,0,35,1],[31,0,31,1],[32,0,32,1],[24,0,24,4],[21,0,21,5],[22,0,22,5],[30,0,30,1],[28,0,28,6],[26,0,26,6],[29,0,29,1],[23,0,23,5],[0,0,0,1],[0,2,0,6],[19,0,19,4],[2,0,2,6],[11,0,11,4],[6,0,6,4],[14,0,14,4],[15,0,15,4],[10,0,10,4],[16,0,16,4],[18,0,18,4],[17,0,17,4],[12,0,12,4],[4,0,4,4],[5,0,5,4],[7,0,7,4]]}
["Jméno a příjmení:",null,{"$f":"'Titulní strana'!C6:H6","v":0}]
[]
[{"$f":"'Hodnotici body'!A34","v":"Pedagogické a mobilitní aktivity"}]
[]
[{"$f":"'Hodnotici body'!A35&\" \n(počet HB: \"&'Hodnotici body'!G35&\")\"","v":"Mobilita – studijní pobyt na zahraniční univerzitě v oboru v délce minimálně 28 dnů \n(počet HB: 10/měsíc)"},null,null,null,null,"Počet měsíců","Počet získaných hodnotících bodů"]
["Země, pracoviště, délka pobytu",null,null,null,null,null,{"$f":"F6*10","v":0}]
[null,null,null,null,null,null,{"$f":"F7*10","v":0}]
["Celkem",null,null,null,null,null,{"$f":"SUM(G6:G7)","v":0}]
[]
[{"$f":"'Hodnotici body'!A36&\" \n(počet HB: \"&'Hodnotici body'!G36&\")\"","v":"Mobilita – studijní pobyt na zahraniční univerzitě v oboru v délce kratší než 28 dnů \n(počet HB: 1/týden)"},null,null,null,null,"Počet týdnů","Počet získaných hodnotících bodů"]
["Země, pracoviště, délka pobytu",null,null,null,null,null,{"$f":"F11","v":0}]
[null,null,null,null,null,null,{"$f":"F12","v":0}]
["Celkem",null,null,null,null,null,{"$f":"SUM(G11:G12)","v":0}]
[]
[{"$f":"'Hodnotici body'!A37&\" (počet HB: \"&'Hodnotici body'!G37&\")\"","v":"Návrh experimentu, experimentálního pracoviště, laboratorního pracoviště. (počet HB: 5)"},null,null,null,null,"ANO/Ne","Počet získaných hodnotících bodů"]
["Popis ",null,null,null,null,false,{"$f":"F16*'Hodnotici body'!G37","v":0}]
[null,null,null,null,null,false,{"$f":"F17*'Hodnotici body'!G37","v":0}]
[null,null,null,null,null,false,{"$f":"F18*'Hodnotici body'!G37","v":0}]
[null,null,null,null,null,false,{"$f":"F19*'Hodnotici body'!G37","v":0}]
["Celkem",null,null,null,null,null,{"$f":"SUM(G16:G19)","v":0}]
[]
[{"$f":"'Hodnotici body'!A38&\" (počet HB: \"&'Hodnotici body'!G38&\")\"","v":"Učební pomůcka (výukové materiály, skripta, výukové programy, laboratorní úloha) (počet HB: 2 - 5)"},null,null,null,null,null,"Počet získaných hodnotících bodů"]
["Popis učební pomůcky (předmět, rozsah, forma)"]
[]
["Celkem",null,null,null,null,null,{"$f":"SUM(G23:G24)","v":0}]
[]
[{"$f":"'Hodnotici body'!A39","v":"Zajištění výuky školicím pracovištěm v oboru disertační práce, max 10 hodnotících bodů v akademickém roce."}]
[]
["Výuka v prezenční formě studia"]
["Název předmětu",null,"Ústav","Podpis tajemníka ústavu","Výuka v AJ","hodin/týden","Počet získaných hodnotících bodů"]
[null,null,null,null,false,0,{"$f":"IF(E31,F31*2,F31)","v":0}]
[null,null,null,null,false,null,{"$f":"IF(E32,F32*2,F32)","v":0}]
[null,null,null,null,false,null,0]
[null,null,null,null,false,null,0]
[null,null,null,null,false,null,0]
[null,null,null,null,false,null,0]
["Prezenční studium celkem",null,null,null,null,null,{"$f":"SUM(G31:G36)","v":0}]
[]
["Výuka v kombinované formě studia"]
["Název předmětu",null,"Ústav","Podpis tajemníka ústavu","Výuka v AJ","hodin/semestr","Počet získaných hodnotících bodů"]
[null,null,null,null,false,0,{"$f":"IF(E41,F41*2/14,F41/14)","v":0}]
[null,null,null,null,false,null,{"$f":"IF(E42,F42*2/14,F42/14)","v":0}]
[null,null,null,null,false,null,0]
[null,null,null,null,false,null,0]
["Kombinované studium celkem",null,null,null,null,null,{"$f":"CEILING(SUM(G41:G44),1)","v":0}]
["Zajištění výuky - Celkem",null,null,null,null,null,{"$f":"CEILING(G37+G45,1)","v":0}]
["Celkový počet započítatelných hodnotících bodů",null,null,null,null,null,{"$f":"IF(G46>10,10,G46)","v":0}]
[]
[{"$f":"'Hodnotici body'!A40&\" (počet HB: \"&'Hodnotici body'!G40&\")\"","v":"Odevzdání disertační práce v českém (slovenském) jazyce (počet HB: 30)"},null,null,null,null,"ANO/Ne","Počet získaných hodnotících bodů"]
["Název práce",null,null,null,null,false,{"$f":"F50*'Hodnotici body'!G40","v":0}]
["Celkem",null,null,null,null,null,{"$f":"SUM(G50:G50)","v":0}]
[]
[{"$f":"'Hodnotici body'!A41&\" (počet HB: \"&'Hodnotici body'!G41&\")\"","v":"Odevzdání disertační práce v anglickém jazyce (počet HB: 50)"},null,null,null,null,"ANO/Ne","Počet získaných hodnotících bodů"]
["Název práce",null,null,null,null,false,{"$f":"F54*'Hodnotici body'!G41","v":0}]
["Celkem",null,null,null,null,null,{"$f":"SUM(G54:G54)","v":0}]
[]
[]
[{"$f":"'Hodnotici body'!A42","v":"Pedagogické a mobilitní aktivity - Celkem"},null,null,null,null,null,{"$f":"G8+G13+G20+G47+G51+G55+G25","v":0}]

{"sheet":"List1","index":8,"n_rows":51,"n_cols":8,"rows_kept":51,"cut":false,"hidden":false,"merged":[]}
["Angličtina",1,"prezenční","leden",2007,"2014/2015","A","Ne"]
["Bezpečnostní management v organizaci",2,"kombinovaná","únor",2008,"2015/2016","B","Ano"]
["Bezpečnostní prognostika",3,null,"březen",2009,"2016/2017","C"]
["Bezpečnostní technologie ochrany informačních systémů",4,null,"duben",2010,"2017/2018","D"]
["Bioinspirované optimalizační metody",5,null,"květen",2011,"2018/2019","E"]
["Diagnostika a testování",6,null,"červen",2012,"2019/2020","F"]
["Elektromagnetická kompatibilita zabezpečovacích zařízení",7,null,"červenec",2013,"2020/2021"]
["Elektronické obvody v bezpečnostních technologiích",8,null,"srpen",2014,"2021/2022"]
["Hardware, rozhraní a jejich programové prostředí",9,null,"září",2015,"2022/2023"]
["Identifikace systémů",10,null,"říjen",2016,"2023/2024"]
["Krizové řízení a ochrana obyvatelstva",11,null,"listopad",2017,"2024/2025"]
["Kybernetická bezpečnost",12,null,"prosinec",2018,"2025/2026"]
["Matematika",13,null,null,2019,"2026/2027"]
["Mechatronické a robotické systémy",null,null,null,2020,"2027/2028"]
["Měřicí technika",null,null,null,2021,"2028/2029"]
["Metody softwarového inženýrství",null,null,null,2022,"2029/2030"]
["Metody systémového inženýrství",null,null,null,2023,"2030/2031"]
["Modelování a simulace spojitých systémů",null,null,null,2024,"2031/2032"]
["Modelování a simulace systémů",null,null,null,2025]
["Modelování procesů ve výrobních technologiích",null,null,null,2026]
["Moderní databázové techniky",null,null,null,2027]
["Moderní síťové technologie a operační systémy",null,null,null,2028]
["Moderní teorie informatiky",null,null,null,2029]
["Návrh a implementace elektrických obvodů",null,null,null,2030]
["Návrh a implementace elektronických obvodů a systémů",null,null,null,2031]
["Obecná teorie systémů",null,null,null,2032]
["Ochrana kritické infrastruktury a měkkých cílů",null,null,null,2033]
["Paralelní procesy a multiplatformní programování",null,null,null,2034]
["Pokročilá teorie bezpečnosti"]
["Pokročilé koncepty klasifikace a datové analýzy"]
["Pokročilé technologie ochrany informačních a komunikačních systémů"]
["Pokročilé zpracování signálů"]
["Simulace diskrétních událostí"]
["Systémové modelování hardware, software co-design"]
["Technické prostředky automatického řízení"]
["Technické prostředky automatizace"]
["Technické prostředky bezpečnostního průmyslu"]
["Technické prostředky bezpečnostních systémů"]
["Technologie komerční bezpečnosti"]
["Teorie algoritmů"]
["Teorie automatického řízení"]
["Teorie digitální komunikace"]
["Teorie informatiky"]
["Vybrané kapitoly z forezních věd"]
["Vybrané kapitoly z teorie automatického řízení "]
["Vybrané kapitoly z teorie řízení"]
["Vybrané kapitoly z umělé inteligence "]
["Vybrané metody softwarového inženýrství"]
["Vybrané optimalizační metody"]
["Výpočetní technika v automatickém řízení"]
["Zpracování multimediálních dat "]